Cogmind - Beta 13 @@@ ROGUE MODE // 2024.03.02 @ 20:39:12 Player: Mogwok Wargfriend Result: Destroyed by H-61 Shepherd with Heavy Assault Cannon Performance ------------- Evolutions (3) 1500 Regions Visited (5) 1000 Robots Destroyed (51) 255 Value Destroyed (1514) 1514 Prototype IDs (4) 80 Alien Tech Used (0) 0 Bonus (500) 500 TOTAL SCORE: 4849 Bonus ------- Entered DSFs 500 Cogmind --------- Core Integrity 0/700 Matter 221/300 Energy 25/100 System Corruption 0% Temperature Cool (0) Movement Core (50) Location -7/DSF Parts ------- > --- POWER (1) -------- (None) > --- PROPULSION (4) --- (None) > --- UTILITY (6) ------ Advanced Visual Processing Unit Improved Signal Interpreter > --- WEAPON (2) ------- (None) > --- INVENTORY (5) ---- Hacking Suite Authchip [R/Combat] Particle Gun Rocket Launcher Improved Datajack Peak State ------------ > --- POWER ------------ Light Deuterium Engine > --- PROPULSION ------- Aluminum Leg Carbon-fiber Leg Carbon-fiber Leg Carbon-fiber Leg > --- UTILITY ---------- Improved Heat Sink Medium Storage Unit Advanced Visual Processing Unit Improved Sensor Array Improved Sensor Array Improved Signal Interpreter > --- WEAPON ----------- Particle Gun Particle Gun > --- INVENTORY -------- Nuclear Core Aluminum Leg Heat Sink Hacking Suite Pulse Rifle Pulse Rifle Rocket Launcher Mini Grenade Launcher Improved Datajack [Rating: 35] Favorites ----------- Power Ion Engine Engine Ion Engine Power Core Light Nuclear Core Propulsion Compact Wheel Treads Light Treads Leg Carbon-fiber Leg Wheel Compact Wheel Utility Medium Storage Unit Device ECM Suite Storage Medium Storage Unit Processor Targeting Computer Hackware Authchip [R/NC] Protection Light Armor Plating Weapon Particle Gun Energy Gun Particle Gun Ballistic Gun Autogun Ballistic Cannon Improved Light Cannon Launcher Rocket Launcher Special Weapon Plasma Cutter Special Melee Weapon Datajack Build | -11 -10 -9 -8 -7 -7 ------- Run | Yrd Mat Mat Mat Fac DSF Slots Evolved 6 | . . 2 2 2 . Power . | . . . . . . Propulsion 2 | . . 1 1 . . Utility 4 | . . 1 1 2 . Weapon . | . . . . . . Parts Attached 75 | 6 3 22 36 1 7 Power 10 | 1 . 3 5 . 1 Engine 6 | 1 . 3 2 . . Core 4 | . . . 3 . 1 Reactor . | . . . . . . Propulsion 22 | 2 1 7 11 . 1 Treads 1 | . . . 1 . . Leg 10 | . . 3 6 . 1 Wheel 11 | 2 1 4 4 . . Hover . | . . . . . . Flight . | . . . . . . Utility 21 | 1 2 5 9 1 3 Device 9 | . . 3 4 . 2 Storage 7 | 1 2 1 3 . . Processor 3 | . . 1 1 1 . Hackware 1 | . . . . . 1 Protection 1 | . . . 1 . . Artifact . | . . . . . . Weapon 22 | 2 . 7 11 . 2 Energy Gun 10 | 2 . 3 4 . 1 Energy Cannon . | . . . . . . Ballistic Gun 1 | . . . 1 . . Ballistic Cannon 1 | . . 1 . . . Launcher 8 | . . 2 5 . 1 Special Weapon 1 | . . 1 . . . Impact Weapon . | . . . . . . Slashing Weapon . | . . . . . . Piercing Weapon . | . . . . . . Special Melee Weapon 1 | . . . 1 . . Unidentified Prototypes . | . . . . . . Parts Lost 36 | . . 9 15 . 12 Power 6 | . . 2 3 . 1 Propulsion 13 | . . 2 7 . 4 Utility 8 | . . 2 2 . 4 Weapon 9 | . . 3 3 . 3 Highest Loss Streak 9 | . . 9 9 . 8 To Critical Strikes . | . . . . . . Average Slot Usage (%) 92 | . 97 91 92 92 84 Engine 8 | . 14 9 5 7 6 Leg 9 | . . 4 15 30 24 Wheel 20 | . 28 26 15 . . Device 10 | . . 9 13 15 17 Storage 13 | . 25 15 9 7 6 Processor 6 | . . 4 9 15 15 Energy Gun 11 | . 28 6 9 15 9 Ballistic Cannon 2 | . . 3 2 . . Launcher 3 | . . 6 3 . 2 Special Weapon 1 | . . 3 . . . Naked Turns . | . . . . . . Heaviest Build 30 | 13 19 27 30 23 25 Greatest Support 58 | 26 26 42 58 40 40 Greatest Overweight (x) 5 | . . 5 1 . 1 Average Overweight (x) . | . . . . . . Largest Inventory Capacity 25 | 8 10 10 25 10 10 Average Capacity 9 | 6 9 10 10 10 9 Most Carried 10 | 6 10 10 10 9 10 Average Carried 9 | 3 8 9 8 9 9 Final Capacity 10 | 8 10 10 10 10 5 Final Carried 10 | 6 10 10 10 9 5 Class Distribution -------------------- 64% | Mutant 28% | Scavenger-Mutant 6% | Scavenger-Skirmisher Dominant Class ---------------- Mutant | -10/Materials Mutant | -9/Materials Scavenger-Mutant | -8/Materials Scavenger-Mutant | -7/Factory Scavenger-Skirmisher | -7/DSF Resources | -11 -10 -9 -8 -7 -7 ----------- Run | Yrd Mat Mat Mat Fac DSF Matter Collected 1301 | 193 94 462 551 . 1 Remotely . | . . . . . . Salvage Created 1914 | . 48 769 1005 . 92 Parts 116 | . . 62 48 . 6 Haulers Intercepted 3 | . . 2 1 . . Recyclers Shooed 6 | . . 5 1 . . Parts Field Recycled . | . . . . . . Retrieved Matter . | . . . . . . Parts Self-Destructed . | . . . . . . Prevented . | . . . . . . Kills | -11 -10 -9 -8 -7 -7 ------- Run | Yrd Mat Mat Mat Fac DSF Combat Hostiles Destroyed 34 | . 1 14 16 . 3 Guns 19 | . 1 8 10 . . Cannons 2 | . . 2 . . . AOE 13 | . . 4 6 . 3 Classes Destroyed 12 | . 1 8 2 . 1 Worker 2 | . . 2 . . . Builder 1 | . . . 1 . . Hauler 3 | . . 2 1 . . Recycler 7 | . . 3 4 . . Operator 1 | . . 1 . . . Watcher 3 | . . 2 1 . . Swarmer 6 | . . 6 . . . Grunt 15 | . 1 3 11 . . Duelist 2 | . . 1 1 . . Sentry 7 | . . 4 3 . . Specialist 3 | . . . . . 3 Hunter 1 | . . . 1 . . Best Kill Streak 6 | . 1 6 4 . 3 Combat Bots Only 5 | . 1 5 2 . 3 Max Kills in Single Turn 4 | . 1 4 2 . 2 Gunslinging . | . . . . . . Exploded 3 | . . 3 2 . 2 Melee . | . . . . . . Uniques/NPCs Destroyed . | . . . . . . Combat | -11 -10 -9 -8 -7 -7 -------- Run | Yrd Mat Mat Mat Fac DSF Hostile Shots Fired 301 | . 10 67 139 . 85 Missed 90 | . 3 17 48 . 22 Damage Taken 3886 | . 78 822 1484 . 1502 Core 1350 | . 23 249 319 . 759 Absorbed by Shields . | . . . . . . Core Remaining (%) 67 | 100 90 37 42 . . Volleys Fired 181 | . 13 72 81 . 15 Largest 2 | . 2 2 2 . 2 Hottest 130 | . 90 90 130 . 95 Shots Fired 273 | . 26 94 135 . 18 Gun 198 | . 26 43 116 . 13 Cannon 36 | . . 28 8 . . Launcher 28 | . . 12 11 . 5 Special 11 | . . 11 . . . Kinetic 63 | . . 28 35 . . Thermal 179 | . 26 51 89 . 13 Explosive 28 | . . 12 11 . 5 Electromagnetic 3 | . . 3 . . . Robot Hit Streak 12 | . 6 11 12 . 5 Robot Miss Streak 5 | . 3 5 4 . 2 Penetration Max . | . . . . . . Secondary Targets . | . . . . . . Shots Hit Robots 157 | . 18 45 85 . 9 Core Hits 94 | . 3 30 51 . 10 Critical Kills . | . . . . . . Critical Parts Destroyed . | . . . . . . Critical Strikes 7 | . 1 4 1 . 1 Burn 4 | . 1 1 1 . 1 Blast 3 | . . 3 . . . Melee Attacks . | . . . . . . Impact . | . . . . . . Slashing . | . . . . . . Piercing . | . . . . . . Sneak Attacks . | . . . . . . Combat Hostiles . | . . . . . . Follow-up Attacks . | . . . . . . Damage Inflicted 4305 | . 221 1268 2173 . 643 Guns 1925 | . 216 346 1210 . 153 Cannons 390 | . . 349 41 . . Explosions 1946 | . . 534 922 . 490 Melee . | . . . . . . Ramming 22 | . 5 17 . . . Kinetic 591 | . . 349 242 . . Thermal 1752 | . 216 374 1009 . 153 Explosive 1918 | . . 506 922 . 490 Electromagnetic 22 | . . 22 . . . Impact . | . . . . . . Slashing . | . . . . . . Piercing . | . . . . . . Highest Corruption 4 | . 4 1 . . . Average Corruption 1 | . 1 1 . . . Corruption Purged . | . . . . . . Corruption Blocked . | . . . . . . Effects 7 | . 4 3 . . . Message Errors 3 | . 2 1 . . . Matter Fused 1 | . 1 . . . . Heat Flow Errors 1 | . 1 . . . . Energy Discharges 1 | . . 1 . . . Data Loss (minor) 1 | . . 1 . . . Overload Shots . | . . . . . . Overflow Damage 97 | . . 76 21 . . Projectiles 6 | . . 6 . . . Explosions 91 | . . 70 21 . . Melee . | . . . . . . Knockbacks 5 | . . 3 2 . . Impact . | . . . . . . Kinetic 5 | . . 3 2 . . Secondary . | . . . . . . Self-Inflicted Damage 77 | . 2 56 19 . . Shots 2 | . . 1 1 . . Rammed 7 | . 1 6 . . . Targets Rammed 7 | . 1 6 . . . Kicked . | . . . . . . Crushed . | . . . . . . Highest Temperature 248 | . 208 59 248 . . Average Temperature 52 | . 83 22 51 . . Received Heat Transfer 1107 | . 42 183 630 . 252 Effects 1 | . . . 1 . . Energy Bleed 1 | . . . 1 . . Siege Activations . | . . . . . . Robots Corrupted . | . . . . . . Combat Hostiles . | . . . . . . Parts Fried 1 | . . 1 . . . Impact Corruptions . | . . . . . . Robots Melted . | . . . . . . Combat Hostiles . | . . . . . . Parts Melted 8 | . 1 3 4 . . Heat Transferred 4583 | . 657 1077 2442 . 407 Parts Sabotaged . | . . . . . . Parts Stolen . | . . . . . . Parts Stripped . | . . . . . . Power Chain Reactions 1 | . . 1 . . . Alert | -11 -10 -9 -8 -7 -7 ------- Run | Yrd Mat Mat Mat Fac DSF Peak Influence 349 | . 111 347 349 31 114 Initial 103 | . . . 103 31 21 Average 101 | . 56 118 121 31 43 Maximum Alert Level 1 | . . 1 1 . . Low Security (%) 83 | 100 100 74 82 100 100 Level 1 16 | . . 25 17 . . Level 2 . | . . . . . . Level 3 . | . . . . . . Level 4 . | . . . . . . Level 5 . | . . . . . . High Security . | . . . . . . Max Security . | . . . . . . Squads Dispatched 8 | . 4 1 2 . 1 Investigation 1 | . 1 . . . . Extermination . | . . . . . . Reinforcement 6 | . 3 1 1 . 1 Assault . | . . . . . . Garrison 1 | . . . 1 . . Intercept . | . . . . . . Searches Triggered . | . . . . . . Construction Impeded . | . . . . . . Haulers Reinforced . | . . . . . . Active Scanning Responses . | . . . . . . Cargo Convoy Interrupts . | . . . . . . Stealth | -11 -10 -9 -8 -7 -7 --------- Run | Yrd Mat Mat Mat Fac DSF Distress Signals 7 | . 1 1 5 . . Communications Jammed . | . . . . . . Distress Signals . | . . . . . . Times Spotted 84 | . 11 23 37 . 13 Peak Tracking Total 9 | . 4 5 9 . 5 Tactical Retreats 11 | . 1 1 5 . 4 Traps | -11 -10 -9 -8 -7 -7 ------- Run | Yrd Mat Mat Mat Fac DSF Traps Triggered 5 | . 4 . . . 1 Indirectly . | . . . . . . Trap Hack Attempts . | . . . . . . Triggered . | . . . . . . Disarmed 6 | . . . 6 . . Reprogrammed . | . . . . . . Reused . | . . . . . . Traps Extracted . | . . . . . . Installed . | . . . . . . Triggered . | . . . . . . Machines | -11 -10 -9 -8 -7 -7 ---------- Run | Yrd Mat Mat Mat Fac DSF Machines Disabled 3 | . . 2 1 . . Max in Single Turn 2 | . . 2 1 . . Machines Repaired . | . . . . . . Machines Dismantled 4 | . . 4 . . . Machines Sabotaged . | . . . . . . Overloaded Fab Kills . | . . . . . . Hacking | -11 -10 -9 -8 -7 -7 --------- Run | Yrd Mat Mat Mat Fac DSF Machines Accessed 14 | . 7 4 2 1 . Terminals 11 | . 5 3 2 1 . Fabricators . | . . . . . . Repair Stations . | . . . . . . Recycling Units 2 | . 2 . . . . Scanalyzers 1 | . . 1 . . . Garrison Access . | . . . . . . Total Hacks 37 | . 14 14 8 1 . Successful 22 | . 6 9 6 1 . Failed 15 | . 8 5 2 . . Catastrophic . | . . . . . . Database Lockouts . | . . . . . . Manual 3 | . . 3 . . . Terminals 31 | . 11 11 8 1 . Fabricators . | . . . . . . Repair Stations . | . . . . . . Recycling Units 3 | . 3 . . . . Scanalyzers 3 | . . 3 . . . Garrison Access . | . . . . . . Terminal Hacks 18 | . 4 7 6 1 . Record 3 | . . 3 . . . Prototype ID Bank 2 | . 1 1 . . . Open DSF 1 | . . . . 1 . Branch Access Points 1 | . . . 1 . . Recycling Unit Index 1 | . . 1 . . . Alert Level 2 | . 1 1 . . . Unreport Threat 3 | . . 1 2 . . Locate Traps 3 | . 1 . 2 . . Disarm Traps 1 | . . . 1 . . Surveillance Status 1 | . 1 . . . . Fabricator Hacks . | . . . . . . Repair Station Hacks . | . . . . . . Recycling Unit Hacks 2 | . 2 . . . . Report Inventory 2 | . 2 . . . . Scanalyzer 2 | . . 2 . . . Insert Component 1 | . . 1 . . . Analyze 1 | . . 1 . . . Garrison Access Hacks . | . . . . . . Unauthorized Hacks . | . . . . . . Terminals . | . . . . . . Fabricators . | . . . . . . Repair Stations . | . . . . . . Recycling Units . | . . . . . . Scanalyzers . | . . . . . . Garrison Access . | . . . . . . Data Cores Recovered . | . . . . . . Used . | . . . . . . Hacking Detections 9 | . 3 4 2 . . Full Trace Events 1 | . . 1 . . . Feedback Events . | . . . . . . Feedback Blocked . | . . . . . . Robot Schematics Acquired . | . . . . . . Robots Built . | . . . . . . Authchips . | . . . . . . Time . | . . . . . . Total Robot Build Rating . | . . . . . . Part Schematics Acquired . | . . . . . . Parts Built . | . . . . . . Authchips . | . . . . . . Time . | . . . . . . Total Part Build Rating . | . . . . . . Parts Repaired . | . . . . . . Time . | . . . . . . Parts Recycled . | . . . . . . Recycled Matter . | . . . . . . Retrieved Matter . | . . . . . . Retrieved Components . | . . . . . . Parts Scanalyzed 1 | . . 1 . . . Part Schematics Acquired . | . . . . . . Parts Damaged . | . . . . . . Bothacking | -11 -10 -9 -8 -7 -7 ------------ Run | Yrd Mat Mat Mat Fac DSF Used RIF Installer . | . . . . . . Robots Hacked . | . . . . . . Non-combat . | . . . . . . Combat . | . . . . . . Robot Hacks Applied . | . . . . . . Relay Couplers Released . | . . . . . . Fabnet Peak Effective % . | . . . . . . Robots Rewired . | . . . . . . Allies Hacked . | . . . . . . Hacks Repelled . | . . . . . . Allies | -11 -10 -9 -8 -7 -7 -------- Run | Yrd Mat Mat Mat Fac DSF Total Allies . | . . . . . . Largest Group . | . . . . . . Highest-Rated Group . | . . . . . . Highest-Rated Ally . | . . . . . . Total Orders . | . . . . . . Ally Attacks . | . . . . . . Total Damage . | . . . . . . Kills . | . . . . . . Allies Corrupted . | . . . . . . Allies Melted . | . . . . . . Intel | -11 -10 -9 -8 -7 -7 ------- Run | Yrd Mat Mat Mat Fac DSF Robot Analysis Total . | . . . . . . Derelict Logs Recovered . | . . . . . . Drone Launches . | . . . . . . Drone Recoveries . | . . . . . . Exploration | -11 -10 -9 -8 -7 -7 ------------- Run | Yrd Mat Mat Mat Fac DSF Turns Passed 2767 | 48 408 1054 1014 13 230 Spaces Moved 1943 | 43 392 711 658 10 129 Core 42 | 14 . 6 . . 22 Treads . | . . . . . . Legs 365 | . . . 248 10 107 Wheels 1536 | 29 392 705 410 . . Hover . | . . . . . . Flight . | . . . . . . Fastest Speed 50 | 50 90 80 95 120 50 Average Speed 98 | 76 90 93 107 120 112 Slowest Speed 300 | 90 90 300 120 120 190 Overloaded Moves . | . . . . . . Propulsion Burnouts . | . . . . . . Robots Hopped . | . . . . . . Cave-ins Triggered . | . . . . . . Exploration Rate (%) 42 | 4 65 40 41 . 62 Regions Visited 5 Branch Regions . Pre-discovered Areas . | . . . . . . Known Exits Taken 1 | . . . . 1 . Unknown Exits Taken 4 | 1 1 1 1 . . Scrap Searched . | . . . . . . Spaces Dug 25 | . . 25 . . . Terrain Destroyed 247 | . . 131 85 . 31 Melee . | . . . . . . Projectile 2 | . . 2 . . . AOE 245 | . . 129 85 . 31 Terrain Rammed . | . . . . . . Walls Destroyed . | . . . . . . Machines Disabled . | . . . . . . Actions | -11 -10 -9 -8 -7 -7 --------- Run | Yrd Mat Mat Mat Fac DSF Total 2440 | 54 423 922 834 11 196 Wait 102 | . 1 48 18 1 34 Move 1938 | 42 391 710 657 9 129 Hop . | . . . . . . Pick Up 48 | 6 8 13 20 . 1 Fast Attach 33 | 6 1 9 14 . 3 Attach 26 | . . 10 12 1 3 Detach 9 | . . 4 4 . 1 Swap 16 | . 2 3 10 . 1 Drop 39 | . 6 10 18 . 5 Fire 181 | . 13 72 81 . 15 Melee . | . . . . . . Ram 7 | . 1 6 . . . Kick . | . . . . . . Crush . | . . . . . . Escape Stasis 4 | . . . . . 4 Rewire . | . . . . . . Trap . | . . . . . . Miscellaneous 37 | . . 37 . . . Route ------- -11/Scrapyard -10/Materials (discovered 2 exits: *Mat / [*Min]) -9/Materials -8/Materials -7/Factory -7/DSF (discovered 1 exit: [*Fac]) History --------- Turn | Location | Event 10 | -11/Scrapyard | Discovered new exit (range 16) 49 | -11/Scrapyard | Entered Materials 299 | -10/Materials | Discovered new exit (range 14) 316 | -10/Materials | Build established: Mutant 434 | -10/Materials | Discovered new exit (range 7) 457 | -10/Materials | Entered another Materials area 457 | -9/Materials | Evolved 2 slots: Propulsion x1, Utility x1 937 | -9/Materials | Core integrity fell below 50% 959 | -9/Materials | Lost 9 parts (2p2n2u3w) 1319 | -9/Materials | Discovered new exit (range 11) 1511 | -9/Materials | Entered another Materials area 1511 | -8/Materials | Evolved 2 slots: Propulsion x1, Utility x1 1823 | -8/Materials | Garrison activated, responded to threat 1848 | -8/Materials | Lost 3 parts (2n1w) 2079 | -8/Materials | Core integrity fell below 50% 2112 | -8/Materials | Lost 9 parts (2p4n2u1w) 2170 | -8/Materials | Build established: Scavenger-Mutant 2240 | -8/Materials | Discovered new exit (range 13) 2525 | -8/Materials | Entered Factory 2525 | -7/Factory | Evolved 2 slots: Utility x2 2537 | -7/Factory | Identified exit to DSF 2538 | -7/Factory | Entered DSF 2555 | -7/DSF | Discovered new exit (range 19) 2623 | -7/DSF | Additional patrols routed to DSF 2721 | -7/DSF | Lost 4 parts (2n1u1w) 2754 | -7/DSF | Core integrity fell below 50% 2766 | -7/DSF | Core integrity fell below 20% 2768 | -7/DSF | Destroyed by H-61 Shepherd with Heavy Assault Cannon Last Messages --------------- 02733_ Lgt. Deuterium Engine destroyed. 02733_ Carbon-fiber Leg destroyed. 02740_ Carbon-fiber Leg severed. 02743_ Dropped Pulse Rifle. 02744_ Dropped Imp. Sensor Array. 02744_ Dropped Med. Storage Unit. 02745_ Dropped Nuclear Core. 02745_ Imp. Sensor Array destroyed. 02749_ Mni. Grenade Launcher destroyed. 02749_ Pulse Rifle destroyed. 02751_ Penetrated by Slug. 02753_ Knocked back. 02756_ ECM Suite destroyed. 02758_ Penetrated by Slug. 02758_ Knocked back. 02759_ Dropped Heat Sink. 02760_ Acquired Authchip [R/Combat]. 02762_ Acquired Authchip [R/NC]. 02763_ Authchip [R/NC] destroyed. 02764_ Slug penetrates Wall. Map ----- +----------------------------------------------------+ | ????????????????????????????????????????????? | | ????????????????????????????????????????????? | | ????????????????????????????????????????????? | | ?????????????????????????????????????###????? | | ???????????????????????##????????????#""????? | | ???????????????????????# #???????????#"#????? | | ????????????????????#### ###???????##"####?? | | ????????????????????# !!! #########"""""#?? | | ????????????????????# !!! #! # ##"""""#?? | | ????????????????????# [=* ""##" | | ????????????????????# ! ^ """"" | | ????????????????????### % ###!!!#! ## ""### | | ????????????????????### ###!!!#!!### ###?? | | ????????????????????#!! % ########## ##??? | | ????????????????????#!! %#??????#!! #??? | | ????????????????????#!! #??????#!! #??? | | ????????????????????### ###??????### ##??? | | ????????????????????#!! ! !#??????#!! !#??? | | ????????????????????#!! l! #??????#! !#??? | | ????????????????????#!! !!#??????#!! !#??? | | ????????????#???####### %g;##??????### ###?? | | ??????#?????#!!?#!!!?## ;#????#????# ]]#?? | | ??????#!! ##!!!#!!!##a ##!!!# ## ]]#?? | | ??????# H a %//#?? | | ??????# //#?? | | ??????# @ //#?? | | ??????# ## #[[[##a a##!!!#///## ! ?? | | ????????????# ??#[[[?## ###!!!#/// #? | | ????????????????###???# #?#?###### ? | | ??????????????????????! ]]??????# !! # | | ??????????????????????! ]]#?????##!!= # | | ?????????????????????!! ]]#??????#!![% # | | ??????????????????????# ###??????# !%! # | | ??????????????????????? !????????# [ ! ### | | ??????????????????????? !????????# %!###? | | ??????????????????????? !!???????### ##??? | | ??????????????????????? ##?????????# #???? | | ??????????????????????? #?????????? ????? | | ???????????????????????? ???????????? ????? | | ?????????????????????????????????????